Cogmind - Beta 12 @@@ ROGUE MODE // 2024.02.17 @ 18:58:14 Player: Vivisector9999 Result: Destroyed by G-34 Mercenary with Small Laser Performance ------------- Evolutions (0) 0 Regions Visited (1) 200 Robots Destroyed (10) 50 Value Destroyed (226) 226 Prototype IDs (0) 0 Alien Tech Used (0) 0 Bonus (0) 0 TOTAL SCORE: 476 Bonus ------- None Cogmind --------- Core Integrity 0/250 Matter 300/300 Energy 125/125 System Corruption 0% Temperature Cool (6) Movement Walking (120) Location -10/Materials Parts ------- > --- POWER (1) -------- Light Ion Engine > --- PROPULSION (2) --- Aluminum Leg Aluminum Leg > --- UTILITY (2) ------ (None) > --- WEAPON (2) ------- Small Laser Light Assault Rifle > --- INVENTORY (5) ---- Ion Engine Light Treads Aluminum Leg Aluminum Leg Medium Matter Pod (30) Peak State ------------ > --- POWER ------------ Light Ion Engine > --- PROPULSION ------- Wheel Wheel > --- UTILITY ---------- Heat Sink > --- WEAPON ----------- EM Pulse Gun EM Pulse Gun > --- INVENTORY -------- Aluminum Leg Aluminum Leg EM Pulse Gun [Rating: 6] Favorites ----------- Power Light Ion Engine Engine Light Ion Engine Propulsion Aluminum Leg Leg Aluminum Leg Wheel Wheel Utility Heat Sink Device Heat Sink Weapon EM Pulse Gun Energy Gun EM Pulse Gun Ballistic Gun Light Assault Rifle Special Weapon Welding Torch Build | -11 -10 ------- Run | Jun Mat Slots Evolved . | . . Power . | . . Propulsion . | . . Utility . | . . Weapon . | . . Parts Attached 14 | 6 8 Power 2 | 1 1 Engine 2 | 1 1 Core . | . . Reactor . | . . Propulsion 5 | 2 3 Treads . | . . Leg 3 | . 3 Wheel 2 | 2 . Hover . | . . Flight . | . . Utility 1 | 1 . Device 1 | 1 . Storage . | . . Processor . | . . Hackware . | . . Protection . | . . Artifact . | . . Weapon 6 | 2 4 Energy Gun 4 | 2 2 Energy Cannon . | . . Ballistic Gun 1 | . 1 Ballistic Cannon . | . . Launcher . | . . Special Weapon 1 | . 1 Impact Weapon . | . . Slashing Weapon . | . . Piercing Weapon . | . . Special Melee Weapon . | . . Unidentified Prototypes . | . . Parts Lost 8 | . 8 Power 1 | . 1 Propulsion 2 | . 2 Utility 1 | . 1 Weapon 4 | . 4 Highest Loss Streak 6 | . 6 To Critical Strikes . | . . Average Slot Usage (%) 62 | . 62 Engine 6 | . 6 Leg 17 | . 17 Wheel 7 | . 7 Device 4 | . 4 Energy Gun 22 | . 22 Ballistic Gun 2 | . 2 Naked Turns . | . . Heaviest Build 8 | 8 8 Greatest Support 20 | 20 20 Greatest Overweight (x) . | . . Average Overweight (x) . | . . Largest Inventory Capacity 5 | 5 5 Average Capacity 5 | 5 5 Most Carried 5 | 5 5 Average Carried 3 | 2 4 Final Capacity 5 | 5 5 Final Carried 5 | 5 5 Class Distribution -------------------- 84% | Mutant 15% | Scavenger-Mutant Dominant Class ---------------- Mutant | -10/Materials Resources | -11 -10 ----------- Run | Jun Mat Matter Collected 340 | 260 80 Remotely . | . . Salvage Created 245 | 50 195 Parts 14 | 3 11 Haulers Intercepted . | . . Recyclers Shooed . | . . Parts Field Recycled . | . . Retrieved Matter . | . . Parts Self-Destructed . | . . Prevented . | . . Kills | -11 -10 ------- Run | Jun Mat Combat Hostiles Destroyed 10 | 1 9 Guns 6 | 1 5 AOE 4 | . 4 Classes Destroyed 2 | 1 1 Swarmer 6 | . 6 Grunt 4 | 1 3 Best Kill Streak 5 | 1 5 Combat Bots Only 5 | 1 5 Max Kills in Single Turn 3 | 1 3 Gunslinging . | . . Exploded 3 | . 3 Melee . | . . Uniques/NPCs Destroyed . | . . Combat | -11 -10 -------- Run | Jun Mat Damage Taken 759 | 11 748 Core 251 | 11 240 Absorbed by Shields . | . . Core Remaining (%) 95 | 95 . Volleys Fired 25 | 2 23 Largest 2 | 2 2 Hottest 80 | 80 80 Shots Fired 46 | 4 42 Gun 43 | 4 39 Cannon . | . . Launcher . | . . Special 3 | . 3 Kinetic . | . . Thermal 21 | . 21 Explosive . | . . Electromagnetic 25 | 4 21 Robot Hit Streak 7 | 2 7 Robot Miss Streak 4 | 1 4 Penetration Max . | . . Secondary Targets 2 | . 2 Max Gunslinging Chain 1 | . 1 Shots Hit Robots 27 | 3 24 Core Hits 12 | 2 10 Critical Kills . | . . Critical Parts Destroyed . | . . Critical Strikes . | . . Melee Attacks . | . . Impact . | . . Slashing . | . . Piercing . | . . Sneak Attacks . | . . Combat Hostiles . | . . Follow-up Attacks . | . . Damage Inflicted 652 | 37 615 Guns 267 | 37 230 Cannons . | . . Explosions 375 | . 375 Melee . | . . Ramming 3 | . 3 Kinetic . | . . Thermal 206 | . 206 Explosive 292 | . 292 Electromagnetic 151 | 37 114 Impact . | . . Slashing . | . . Piercing . | . . Highest Corruption . | . . Average Corruption . | . . Corruption Purged . | . . Corruption Blocked . | . . Overload Shots . | . . Overflow Damage 120 | . 120 Projectiles . | . . Explosions 120 | . 120 Melee . | . . Knockbacks . | . . Impact . | . . Kinetic . | . . Secondary . | . . Self-Inflicted Damage 262 | . 262 Shots 4 | . 4 Rammed . | . . Targets Rammed 4 | . 4 Kicked 4 | . 4 Crushed . | . . Highest Temperature 42 | 42 27 Average Temperature 10 | 23 7 Received Heat Transfer 132 | 6 126 Siege Activations . | . . Robots Corrupted . | . . Combat Hostiles . | . . Parts Fried . | . . Impact Corruptions . | . . Robots Melted . | . . Combat Hostiles . | . . Parts Melted 1 | . 1 Heat Transferred 400 | . 400 Parts Sabotaged . | . . Parts Stolen . | . . Parts Stripped . | . . Power Chain Reactions 2 | . 2 Missiles Intercepted . | . . Alert | -11 -10 ------- Run | Jun Mat Peak Influence 257 | 20 257 Initial 13 | . 13 Average 113 | 4 148 Maximum Alert Level 1 | . 1 Low Security (%) 76 | 100 68 Level 1 23 | . 31 Level 2 . | . . Level 3 . | . . Level 4 . | . . Level 5 . | . . High Security . | . . Max Security . | . . Squads Dispatched 1 | . 1 Investigation 1 | . 1 Extermination . | . . Reinforcement . | . . Assault . | . . Garrison . | . . Intercept . | . . Searches Triggered . | . . Construction Impeded . | . . Haulers Reinforced . | . . Active Scanning Responses . | . . Cargo Convoy Interrupts . | . . Stealth | -11 -10 --------- Run | Jun Mat Distress Signals 1 | . 1 Communications Jammed . | . . Distress Signals . | . . Times Spotted 15 | 1 14 Peak Tracking Total 6 | 1 6 Tactical Retreats . | . . Traps | -11 -10 ------- Run | Jun Mat Traps Triggered 1 | . 1 Indirectly . | . . Trap Hack Attempts . | . . Triggered . | . . Disarmed . | . . Reprogrammed . | . . Reused . | . . Traps Extracted . | . . Installed . | . . Triggered . | . . Machines | -11 -10 ---------- Run | Jun Mat Machines Disabled 3 | . 3 Max in Single Turn 2 | . 2 Machines Repaired . | . . Machines Sabotaged . | . . Overloaded Fab Kills . | . . Hacking | -11 -10 --------- Run | Jun Mat Machines Accessed 1 | . 1 Terminals 1 | . 1 Fabricators . | . . Repair Stations . | . . Recycling Units . | . . Scanalyzers . | . . Garrison Access . | . . Total Hacks 2 | . 2 Successful 2 | . 2 Failed . | . . Catastrophic . | . . Database Lockouts . | . . Manual . | . . Terminals 2 | . 2 Fabricators . | . . Repair Stations . | . . Recycling Units . | . . Scanalyzers . | . . Garrison Access . | . . Terminal Hacks 2 | . 2 Record 1 | . 1 Alert Level 1 | . 1 Fabricator Hacks . | . . Repair Station Hacks . | . . Recycling Unit Hacks . | . . Scanalyzer . | . . Garrison Access Hacks . | . . Unauthorized Hacks . | . . Terminals . | . . Fabricators . | . . Repair Stations . | . . Recycling Units . | . . Scanalyzers . | . . Garrison Access . | . . Data Cores Recovered . | . . Used . | . . Hacking Detections . | . . Full Trace Events . | . . Feedback Events . | . . Feedback Blocked . | . . Robot Schematics Acquired . | . . Robots Built . | . . Authchips . | . . Time . | . . Total Robot Build Rating . | . . Part Schematics Acquired . | . . Parts Built . | . . Authchips . | . . Time . | . . Total Part Build Rating . | . . Parts Repaired . | . . Time . | . . Parts Recycled . | . . Recycled Matter . | . . Retrieved Matter . | . . Retrieved Components . | . . Parts Scanalyzed . | . . Part Schematics Acquired . | . . Parts Damaged . | . . Bothacking | -11 -10 ------------ Run | Jun Mat Used RIF Installer . | . . Robots Hacked . | . . Non-combat . | . . Combat . | . . Robot Hacks Applied . | . . Relay Couplers Released . | . . Fabnet Peak Effective % . | . . Robots Rewired . | . . Allies Hacked . | . . Hacks Repelled . | . . Allies | -11 -10 -------- Run | Jun Mat Total Allies . | . . Largest Group . | . . Highest-Rated Group . | . . Highest-Rated Ally . | . . Total Orders . | . . Ally Attacks . | . . Total Damage . | . . Kills . | . . Allies Corrupted . | . . Allies Melted . | . . Intel | -11 -10 ------- Run | Jun Mat Robot Analysis Total . | . . Derelict Logs Recovered . | . . Drone Launches . | . . Drone Recoveries . | . . Exploration | -11 -10 ------------- Run | Jun Mat Turns Passed 334 | 80 254 Spaces Moved 221 | 78 143 Core 22 | 17 5 Treads . | . . Legs 84 | . 84 Wheels 115 | 61 54 Hover . | . . Flight . | . . Fastest Speed 50 | 50 50 Average Speed 92 | 73 102 Slowest Speed 120 | 80 120 Overloaded Moves . | . . Propulsion Burnouts . | . . Robots Hopped . | . . Cave-ins Triggered . | . . Exploration Rate (%) 18 | 7 30 Regions Visited 1 Branch Regions . Pre-discovered Areas . | . . Known Exits Taken . | . . Unknown Exits Taken 1 | 1 . Scrap Searched . | . . Spaces Dug . | . . Terrain Destroyed 47 | . 47 Melee . | . . Projectile . | . . AOE 47 | . 47 Terrain Rammed . | . . Walls Destroyed . | . . Machines Disabled . | . . Actions | -11 -10 --------- Run | Jun Mat Total 304 | 96 208 Wait 19 | . 19 Move 220 | 77 143 Hop . | . . Pick Up 20 | 11 9 Fast Attach . | . . Attach 14 | 6 8 Detach . | . . Swap . | . . Drop 2 | . 2 Fire 25 | 2 23 Melee . | . . Ram . | . . Kick 4 | . 4 Crush . | . . Escape Stasis . | . . Rewire . | . . Trap . | . . Miscellaneous . | . . Route ------- -11/Junkyard -10/Materials (discovered 1 exit: [*Mat]) History --------- Turn | Location | Event 2 | -11/Junkyard | Met Revision 17 57 | -11/Junkyard | Discovered new exit (range 8) 81 | -11/Junkyard | Entered Materials 156 | -10/Materials | Core integrity fell below 50% 195 | -10/Materials | Lost 6 parts (1p2n1u2w) 241 | -10/Materials | Core integrity fell below 20% 323 | -10/Materials | Discovered new exit (range 16) 335 | -10/Materials | Destroyed by G-34 Mercenary with Small Laser Last Messages --------------- 00259_ Purification Channel disabled. 00271_ R-06 Scavenger collects Lgt. Assault Rifle. 00272_ Kicked G-34 Mercenary. 00278_ Welding Torch destroyed. 00286_ Sml. Laser melted. 00286_ G-34 Mercenary destroyed. 00288_ Dropped Aluminum Leg. 00291_ Acquired Lgt. Ion Engine. 00294_ Acquired Lgt. Assault Rifle. 00296_ Acquired 50 matter. 00297_ Acquired 15 matter. 00301_ K-01 Serf collects debris. 00309_ Acquired Ion Engine. 00312_ Acquired Hcp. Matter Pod. 00313_ Dropped Hcp. Matter Pod. 00320_ Acquired Lgt. Treads. 00323_ EXIT=FOUND 00331_ Triggered Alarm Trap. 00331_ An alarm sounds. 00331_ ALERT: Alarm triggered, dispatching investigation squad. Map ----- +----------------------------------------------------+ | | | | | | | | | | | | | | | | | | | | | | | | | ?????????????????????????????????????????????????? | | ?????????????????????????????????????????????????? | | ?????????????????????????????????????????????????? | | ?????????????????????????????????????????????????? | | ?????????????????????????????????????????????????? | | ??????????????????????####???????????????????????? | | ??????????????????????# #??????????????????????? | | ??????????????????????# g #??????????????????????? | | ??????????????????????# ??????????????????????? | | ??????????????????????+ ??????????????????????? | | ??????????????????????# #??????????????????????? | | ??????????????????????# #??????????????????????? | | ??????????????????????# #??????????????????????? | | ??????????????????????# @#??????????????????????? | | ??????????????????????# #?????????????? ??????? | | ??????????????????????# #?????????????? #????? | | ??????????????????????# #?????????????? #????? | | ?????????????########## #?????????????? #????? | | ?????????????# # #???##???????## ##???? | | ?????????????# # ####T######### #???? | | ?????????????# # #???? | | ?????????????# # ##??? | | ?????????????# # """ ###? | | ?????????????# ! + """ ####### # #? | | ?????????????# # """ #?# # # ## | | ?????????????# # """ ### # | | ?????????????# # ## ## | | ?????????########+##### ## # | | ?????????# ## #???# ## # | | ?????????# " ## #???# ## # | | ?????????#""" ## ##### #T## ## # # #? | | ?????????#" " #### ####### # ## | | ?????????#" !" #??# % | | ?????????# # #??# | | ?????????#" # #####+###?# | | ?????????#" = " #??# #?# ####### ##### | | ?????????#""" # #??# #?# #?????#######???? | | ?????????# " # #??# #?# #???????????????? | +----------------------------------------------------+ Best States ------------- Heat Dissipation 35 Energy Generation 10 Energy Capacity 125 Matter Stores 300 Matter Capacity 300 Sight Range 16 Terrain Scan Density 10 Evasion (%) 55 Item Schematics ----------------- None Robot Schematics ------------------ None Fabricated ------------ Nothing Alien Tech Used ----------------- None Achievements -------------- None Challenges ------------ None Game ------ Seed GaussXenonDissipator Manual? 0 Play Time 00:14:44 Cumulative 1.5 hours Start 2024.02.13 @ 21:30:48 End 2024.02.17 @ 18:58:14 Sessions 2 Manual Loads 0 Difficulty Rogue Special Mode None Game No. 3 Rogue 3 Adventurer 0 Explorer 0 Win Type - Total 0 Types 0/0/0/0/0/0/0/0/0 Lore% 0 Gallery% 2 Achievement% 19 Wizard Run 0 Options --------- ASCII 0 Keyboard 0 Movement Numpad Keybinds 0 Fullscreen 1 Font 18/SmallcapsGlow Map View 76x50 Tactical HUD 1 Map Filters NONE Filters NONE Steam 1 RUN: c7cb3a37-57a0-4ccc-9aa5-7a3a11250c4a